[Event "FIDE WYCC Open U14 2023"]
[Site "Montesilvano"]
[Date "2023.11.22"]
[Round "9.25"]
[White "Schuricht, Emil Frederick"]
[Black "Zienkiewicz, Jan"]
[Result "1-0"]
[ECO "E32"]
[WhiteElo "1998"]
[BlackElo "2296"]
[Annotator "RC"]
[PlyCount "61"]
[EventDate "2023.11.13"]
[EventType "swiss"]
[EventCountry "ITA"]
[SourceTitle "playchess.com"]
[Source "ChessBase"]
[SourceQuality "1"]
[TimeControl "40/5400+30:1800+30"]

1. d4 {[%emt 0:00:03]} Nf6 {[%emt 0:00:32]} 2. c4 {[%emt 0:00:05]} e6 {[%emt 0:00:14]} 3. Nc3 {[%emt 0:00:06]} Bb4 {[%emt 0:00:43]} 4. Qc2 {[%emt 0:00:13]} d6 {[%emt 0:01:12]} 5. a3 {[%emt 0:00:57]} Bxc3+ {[%emt 0:00:14]} 6. Qxc3 {[%emt 0:00:06]} O-O {[%emt 0:00:21]} 7. Bg5 {[%emt 0:05:11]} Nbd7 {[%emt 0:00:48]} 8. Nf3 {[%emt 0:02:24]} b6 {[%emt 0:03:49]} 9. Nd2 {[%emt 0:00:57]} Bb7 {[%emt 0:01:58]} 10. e3 {[%emt 0:02:01]} c5 {[%emt 0:03:19]} 11. dxc5 {[%emt 0:01:34]} bxc5 {[%emt 0:06:43]} 12. Bd3 {[%emt 0:03:41]} Rc8 {[%emt 0:22:04]} 13. O-O {[%emt 0:03:05]} d5 {[%emt 0:00:15]} 14. cxd5 {[%emt 0:05:32]} exd5 {[%emt 0:00:41]} 15. Bf5 {[%emt 0:01:51]} Rc6 {[%emt 0:11:03]} 16. Bxd7 {[%emt 0:12:36]} Qxd7 {[%emt 0:00:49]} 17. Bxf6 {[%emt 0:00:15]} Rxf6 {[%emt 0:15:27]} 18. Qxc5 {[%emt 0:06:35]} d4 {[%emt 0:01:20]} 19. exd4 {[%emt 0:06:30]} Rc8 {[%emt 0:06:43]} 20. Qe5 {[%emt 0:16:22]} Re8 {[%emt 0:01:00]} 21. Qc5 {[%emt 0:03:48]} Re2 {[%emt 0:07:09]} 22. Rae1 {[%emt 0:03:49]} Rxd2 {[%emt 0:05:33]} 23. Qc7 {[%emt 0:02:16]} Bc8 {[%emt 0:06:56]} 24. Re7 {[%emt 0:00:51]} Rfxf2 {[%emt 0:02:37]} 25. Rxd7 {[%emt 0:00:35]} Rxg2+ {[%emt 0:00:29]} 26. Kh1 {[%emt 0:00:02]} Rxh2+ {[%emt 0:00:23]} 27. Qxh2 {[%emt 0:00:03]} Rxh2+ {[%emt 0:00:04]} 28. Kxh2 {[%emt 0:00:09]} Bxd7 {[%emt 0:00:01]} 29. Rc1 {[%emt 0:00:46]} a5 {[%emt 0:00:20]} 30. Rc7 {[%emt 0:01:56]} Be8 {[%emt 0:00:02]} 31. d5 {[%emt 0:00:10]} 1-0

[Event "FIDE WYCC Open U14 2023"]
[Site "Montesilvano"]
[Date "2023.11.22"]
[Round "9.26"]
[White "Dumanuly, Sultanbeibarys"]
[Black "Averin, Nikolay"]
[Result "0-1"]
[ECO "B53"]
[WhiteElo "1931"]
[BlackElo "2270"]
[Annotator "RC"]
[PlyCount "100"]
[EventDate "2023.11.13"]
[EventType "swiss"]
[EventCountry "ITA"]
[SourceTitle "playchess.com"]
[Source "ChessBase"]
[SourceQuality "1"]
[TimeControl "40/5400+30:1800+30"]

1. e4 {[%emt 0:00:58]} c5 {[%emt 0:00:16]} 2. Nf3 {[%emt 0:00:03]} d6 {[%emt 0:00:08]} 3. d4 {[%emt 0:00:04]} cxd4 {[%emt 0:00:04]} 4. Qxd4 {[%emt 0:00:04]} Nc6 {[%emt 0:05:03]} 5. Qd3 {[%emt 0:00:08]} g6 {[%emt 0:02:02]} 6. Nc3 {[%emt 0:00:26]} Bg7 {[%emt 0:00:15]} 7. Be2 {[%emt 0:00:09]} Nf6 {[%emt 0:01:38]} 8. O-O {[%emt 0:00:07]} O-O {[%emt 0:06:05]} 9. Nd5 {[%emt 0:00:11]} Nd7 {[%emt 0:12:19]} 10. c3 {[%emt 0:00:30]} Nc5 {[%emt 0:02:16]} 11. Qc2 {[%emt 0:00:06]} Bg4 {[%emt 0:23:15]} 12. Bg5 {[%emt 0:13:00]} h6 {[%emt 0:03:46]} 13. Bh4 {[%emt 0:21:25]} g5 {[%emt 0:03:46]} 14. Bg3 {[%emt 0:00:15]} f5 {[%emt 0:00:15]} 15. exf5 {[%emt 0:03:40]} Bxf5 {[%emt 0:00:53]} 16. Qd1 {[%emt 0:00:07]} Kh8 {[%emt 0:06:05]} 17. Nd2 {[%emt 0:13:11]} Bh7 {[%emt 0:05:08]} 18. Ne3 {[%emt 0:15:30]} Nd3 {[%emt 0:10:30]} 19. Bxd3 {[%emt 0:15:23]} Bxd3 {[%emt 0:00:06]} 20. Re1 {[%emt 0:00:02]} Bh7 {[%emt 0:04:35]} 21. Nf3 {[%emt 0:01:31]} Qd7 {[%emt 0:00:48]} 22. Qa4 {[%emt 0:03:32]} Rad8 {[%emt 0:02:47]} 23. h4 {[%emt 0:01:39]} Rxf3 {[%emt 0:08:04]} 24. gxf3 {[%emt 0:01:05]} Ne5 {[%emt 0:00:06]} 25. Qxd7 {[%emt 0:04:38]} Nxf3+ {[%emt 0:00:14]} 26. Kg2 {[%emt 0:01:12]} Nxe1+ {[%emt 0:00:11]} 27. Rxe1 {[%emt 0:00:03]} Rxd7 {[%emt 0:00:03]} 28. hxg5 {[%emt 0:00:39]} hxg5 {[%emt 0:00:02]} 29. Nd5 {[%emt 0:00:09]} Bf8 {[%emt 0:03:08]} 30. Kf3 {[%emt 0:02:55]} Kg7 {[%emt 0:00:40]} 31. Kg4 {[%emt 0:00:38]} Bg8 {[%emt 0:00:26]} 32. c4 {[%emt 0:02:18]} Bxd5 {[%emt 0:00:51]} 33. cxd5 {[%emt 0:00:05]} Rc7 {[%emt 0:00:09]} 34. Kxg5 {[%emt 0:01:09]} Rc2 {[%emt 0:00:31]} 35. b4 {[%emt 0:00:33]} Rxa2 {[%emt 0:00:43]} 36. Rd1 {[%emt 0:00:30]} Kf7 {[%emt 0:00:38]} 37. Kf5 {[%emt 0:00:32]} Bg7 {[%emt 0:00:41]} 38. Bh4 {[%emt 0:00:26]} Rb2 {[%emt 0:00:21]} 39. Re1 {[%emt 0:00:30]} Bf8 {[%emt 0:00:12]} 40. Re4 {[%emt 0:00:00]} Rd2 {[%emt 0:00:00]} 41. Rf4 {[%emt 0:01:31]} Bh6 {[%emt 0:02:01]} 42. Rc4 {[%emt 0:07:04]} Rxd5+ {[%emt 0:00:35]} 43. Kg4 {[%emt 0:00:05]} Rb5 {[%emt 0:00:58]} 44. f4 {[%emt 0:00:52]} Bg7 {[%emt 0:01:41]} 45. Be1 {[%emt 0:03:47]} Ke8 {[%emt 0:00:24]} 46. f5 {[%emt 0:00:45]} Bf6 {[%emt 0:00:12]} 47. Kf4 {[%emt 0:04:14]} Kd7 {[%emt 0:00:04]} 48. Rc2 {[%emt 0:00:12]} a6 {[%emt 0:00:31]} 49. Bd2 {[%emt 0:00:19]} Rb6 {[%emt 0:00:31]} 50. Ke4 {[%emt 0:00:43]} Rc6 {[%emt 0:00:15]} 0-1

[Event "FIDE WYCC Open U14 2023"]
[Site "Montesilvano"]
[Date "2023.11.22"]
[Round "9.27"]
[White "Dinh Nho Kiet"]
[Black "Demirtas, Alper"]
[Result "1-0"]
[ECO "D35"]
[WhiteElo "2253"]
[BlackElo "2034"]
[Annotator "RC"]
[PlyCount "97"]
[EventDate "2023.11.13"]
[EventType "swiss"]
[EventCountry "ITA"]
[SourceTitle "playchess.com"]
[Source "ChessBase"]
[SourceQuality "1"]
[TimeControl "40/5400+30:1800+30"]

1. d4 {[%emt 0:00:49]} d5 {[%emt 0:00:02]} 2. c4 {[%emt 0:00:19]} e6 {[%emt 0:00:04]} 3. Nc3 {[%emt 0:00:07]} Nf6 {[%emt 0:00:03]} 4. cxd5 {[%emt 0:00:15]} exd5 {[%emt 0:00:02]} 5. Bg5 {[%emt 0:00:09]} Be7 {[%emt 0:00:56]} 6. e3 {[%emt 0:00:06]} c6 {[%emt 0:00:07]} 7. Bd3 {[%emt 0:00:06]} Nbd7 {[%emt 0:00:03]} 8. Nge2 {[%emt 0:00:11]} Nh5 {[%emt 0:00:03]} 9. Bxe7 {[%emt 0:00:10]} Qxe7 {[%emt 0:00:02]} 10. g4 {[%emt 0:00:54]} Nhf6 {[%emt 0:03:19]} 11. Ng3 {[%emt 0:00:13]} Nb6 {[%emt 0:11:17]} 12. g5 {[%emt 0:00:41]} Ng8 {[%emt 0:00:56]} 13. h4 {[%emt 0:01:56]} g6 {[%emt 0:13:08]} 14. Qe2 {[%emt 0:07:10]} Bd7 {[%emt 0:06:13]} 15. O-O-O {[%emt 0:01:29]} O-O-O {[%emt 0:00:45]} 16. f4 {[%emt 0:00:56]} h6 {[%emt 0:08:05]} 17. Qf3 {[%emt 0:18:20]} Re8 {[%emt 0:06:32]} 18. e4 {[%emt 0:05:08]} dxe4 {[%emt 0:01:21]} 19. Ngxe4 {[%emt 0:03:30]} f5 {[%emt 0:06:35]} 20. Nc5 {[%emt 0:02:04]} Qe3+ {[%emt 0:01:12]} 21. Qxe3 {[%emt 0:00:06]} Rxe3 {[%emt 0:00:02]} 22. h5 {[%emt 0:02:01]} hxg5 {[%emt 0:11:16]} 23. hxg6 {[%emt 0:00:20]} Rxh1 {[%emt 0:02:45]} 24. Rxh1 {[%emt 0:01:59]} gxf4 {[%emt 0:00:29]} 25. Rh8 {[%emt 0:08:14]} Re8 {[%emt 0:01:50]} 26. Be2 {[%emt 0:16:22]} Ne7 {[%emt 0:11:34]} 27. g7 {[%emt 0:01:18]} Rg8 {[%emt 0:00:41]} 28. Bh5 {[%emt 0:00:42]} f3 {[%emt 0:01:08]} 29. Kd1 {[%emt 0:03:12]} Kc7 {[%emt 0:03:50]} 30. Rxg8 {[%emt 0:01:45]} Nxg8 {[%emt 0:00:04]} 31. Bf7 {[%emt 0:00:10]} Nh6 {[%emt 0:00:25]} 32. Ke1 {[%emt 0:01:22]} Nc8 {[%emt 0:00:36]} 33. g8=Q {[%emt 0:00:19]} Nxg8 {[%emt 0:00:05]} 34. Bxg8 {[%emt 0:00:06]} Ne7 {[%emt 0:00:49]} 35. Bf7 {[%emt 0:00:58]} f4 {[%emt 0:01:03]} 36. Bh5 {[%emt 0:00:58]} b6 {[%emt 0:01:21]} 37. Nxd7 {[%emt 0:02:29]} Kxd7 {[%emt 0:00:02]} 38. Bxf3 {[%emt 0:00:07]} Kd6 {[%emt 0:00:15]} 39. Ke2 {[%emt 0:00:58]} Nf5 {[%emt 0:00:39]} 40. Kd3 {[%emt 0:00:00]} Nh4 {[%emt 0:00:00]} 41. Ke4 {[%emt 0:04:11]} Nxf3 {[%emt 0:00:48]} 42. Kxf3 {[%emt 0:00:08]} c5 {[%emt 0:00:02]} 43. dxc5+ {[%emt 0:04:49]} Kxc5 {[%emt 0:00:02]} 44. Kxf4 {[%emt 0:00:34]} Kd4 {[%emt 0:00:02]} 45. Nb5+ {[%emt 0:00:06]} Kd3 {[%emt 0:00:05]} 46. Nxa7 {[%emt 0:00:05]} Kc2 {[%emt 0:00:03]} 47. b4 {[%emt 0:00:08]} Kc3 {[%emt 0:00:01]} 48. b5 {[%emt 0:00:07]} Kc4 {[%emt 0:00:05]} 49. Ke5 {[%emt 0:00:04]} 1-0

[Event "FIDE WYCC Open U14 2023"]
[Site "Montesilvano"]
[Date "2023.11.22"]
[Round "9.28"]
[White "Sodbilegt, Naranbold"]
[Black "Kazantzoglou, Stefanos"]
[Result "1/2-1/2"]
[ECO "C45"]
[WhiteElo "2151"]
[BlackElo "2031"]
[Annotator "RC"]
[PlyCount "137"]
[EventDate "2023.11.13"]
[EventType "swiss"]
[EventCountry "ITA"]
[SourceTitle "playchess.com"]
[Source "ChessBase"]
[SourceQuality "1"]
[TimeControl "40/5400+30:1800+30"]

1. e4 {[%emt 0:00:01]} e5 {[%emt 0:00:01]} 2. Nf3 {[%emt 0:00:08]} Nc6 {[%emt 0:00:04]} 3. d4 {[%emt 0:00:04]} exd4 {[%emt 0:00:04]} 4. Nxd4 {[%emt 0:00:07]} Bc5 {[%emt 0:00:10]} 5. Be3 {[%emt 0:00:55]} Qf6 {[%emt 0:00:08]} 6. c3 {[%emt 0:00:10]} Nge7 {[%emt 0:00:10]} 7. Bc4 {[%emt 0:00:48]} Ne5 {[%emt 0:00:05]} 8. Be2 {[%emt 0:00:06]} d6 {[%emt 0:00:47]} 9. O-O {[%emt 0:01:37]} Qg6 {[%emt 0:02:09]} 10. f3 {[%emt 0:00:44]} O-O {[%emt 0:00:56]} 11. Nd2 {[%emt 0:01:24]} Bd7 {[%emt 0:04:41]} 12. a4 {[%emt 0:01:09]} a5 {[%emt 0:01:25]} 13. Nc2 {[%emt 0:08:23]} Bxe3+ {[%emt 0:05:09]} 14. Nxe3 {[%emt 0:00:07]} N5c6 {[%emt 0:12:12]} 15. f4 {[%emt 0:06:30]} f5 {[%emt 0:05:02]} 16. Qb3+ {[%emt 0:11:58]} Kh8 {[%emt 0:06:04]} 17. Bd3 {[%emt 0:10:19]} Qe6 {[%emt 0:10:18]} 18. Bc4 {[%emt 0:06:29]} Qg6 {[%emt 0:02:17]} 19. Bd3 {[%emt 0:06:23]} Qe6 {[%emt 0:00:31]} 20. Bc4 {[%emt 0:12:08]} Qg6 {[%emt 0:00:43]} 21. exf5 {[%emt 0:00:34]} Nxf5 {[%emt 0:00:48]} 22. Rae1 {[%emt 0:01:36]} Nxe3 {[%emt 0:07:04]} 23. Rxe3 {[%emt 0:00:15]} Qh5 {[%emt 0:01:34]} 24. Rfe1 {[%emt 0:13:13]} b6 {[%emt 0:14:09]} 25. Be6 {[%emt 0:08:21]} Bxe6 {[%emt 0:00:59]} 26. Qxe6 {[%emt 0:00:05]} Rxf4 {[%emt 0:01:16]} 27. Nf3 {[%emt 0:06:19]} Qf5 {[%emt 0:03:44]} 28. Qxf5 {[%emt 0:01:48]} Rxf5 {[%emt 0:00:02]} 29. Re8+ {[%emt 0:00:08]} Rf8 {[%emt 0:00:02]} 30. Rxa8 {[%emt 0:00:07]} Rxa8 {[%emt 0:00:01]} 31. Re4 {[%emt 0:00:06]} Rc8 {[%emt 0:02:26]} 32. Kf2 {[%emt 0:00:41]} Kg8 {[%emt 0:00:15]} 33. Ke3 {[%emt 0:01:02]} Kf7 {[%emt 0:01:50]} 34. Kd3 {[%emt 0:00:49]} h6 {[%emt 0:03:13]} 35. Rf4+ {[%emt 0:01:25]} Ke6 {[%emt 0:01:07]} 36. Rg4 {[%emt 0:00:33]} g5 {[%emt 0:01:38]} 37. h4 {[%emt 0:00:45]} Kf5 {[%emt 0:02:01]} 38. Rc4 {[%emt 0:00:49]} Ne5+ {[%emt 0:01:10]} 39. Nxe5 {[%emt 0:00:02]} Kxe5 {[%emt 0:00:09]} 40. Re4+ {[%emt 0:00:00]} Kf6 {[%emt 0:00:00]} 41. Kd4 {[%emt 0:13:30]} c6 {[%emt 0:02:00]} 42. Re1 {[%emt 0:01:33]} gxh4 {[%emt 0:04:18]} 43. Re4 {[%emt 0:00:11]} Kg5 {[%emt 0:07:06]} 44. Re6 {[%emt 0:00:52]} Rd8 {[%emt 0:01:23]} 45. Ke3 {[%emt 0:06:06]} h5 {[%emt 0:01:38]} 46. Re7 {[%emt 0:00:27]} h3 {[%emt 0:01:03]} 47. gxh3 {[%emt 0:00:18]} Kh4 {[%emt 0:00:02]} 48. Rb7 {[%emt 0:02:25]} Kxh3 {[%emt 0:00:22]} 49. Rxb6 {[%emt 0:00:07]} Kg2 {[%emt 0:00:37]} 50. Rxc6 {[%emt 0:02:33]} h4 {[%emt 0:00:10]} 51. Rc4 {[%emt 0:02:15]} Kg3 {[%emt 0:00:36]} 52. Rc7 {[%emt 0:02:19]} Rg8 {[%emt 0:00:49]} 53. Rh7 {[%emt 0:00:48]} Rg4 {[%emt 0:00:50]} 54. b4 {[%emt 0:01:41]} axb4 {[%emt 0:01:29]} 55. cxb4 {[%emt 0:00:32]} Rxb4 {[%emt 0:00:02]} 56. Rg7+ {[%emt 0:00:08]} Kh2 {[%emt 0:00:56]} 57. a5 {[%emt 0:00:51]} Ra4 {[%emt 0:00:27]} 58. Rg5 {[%emt 0:02:23]} h3 {[%emt 0:00:46]} 59. Kf3 {[%emt 0:00:40]} Ra3+ {[%emt 0:03:28]} 60. Kf2 {[%emt 0:00:04]} Ra2+ {[%emt 0:00:31]} 61. Kf3 {[%emt 0:00:20]} Kh1 {[%emt 0:02:51]} 62. Rd5 {[%emt 0:02:08]} Ra3+ {[%emt 0:00:35]} 63. Kf2 {[%emt 0:00:13]} Kh2 {[%emt 0:04:49]} 64. Rxd6 {[%emt 0:00:34]} Rxa5 {[%emt 0:00:07]} 65. Rf6 {[%emt 0:00:20]} Ra2+ {[%emt 0:00:59]} 66. Kf1 {[%emt 0:00:21]} Rg2 {[%emt 0:02:10]} 67. Rf8 {[%emt 0:00:50]} Rg7 {[%emt 0:00:36]} 68. Kf2 {[%emt 0:00:06]} Rg5 {[%emt 0:02:27]} 69. Rf7 {[%emt 0:00:12]} 1/2-1/2

[Event "FIDE WYCC Open U14 2023"]
[Site "Montesilvano"]
[Date "2023.11.22"]
[Round "9.29"]
[White "Tabatadze, Erekle"]
[Black "Tregubenko, Nikolay"]
[Result "0-1"]
[ECO "E73"]
[WhiteElo "1925"]
[BlackElo "2138"]
[Annotator "RC"]
[PlyCount "124"]
[EventDate "2023.11.13"]
[EventType "swiss"]
[EventCountry "ITA"]
[SourceTitle "playchess.com"]
[Source "ChessBase"]
[SourceQuality "1"]
[TimeControl "40/5400+30:1800+30"]

1. d4 {[%emt 0:00:02]} Nf6 {[%emt 0:09:17]} 2. c4 {[%emt 0:00:21]} g6 {[%emt 0:00:02]} 3. Nc3 {[%emt 0:00:07]} Bg7 {[%emt 0:00:04]} 4. e4 {[%emt 0:00:11]} d6 {[%emt 0:00:01]} 5. Be2 {[%emt 0:00:08]} O-O {[%emt 0:00:04]} 6. Bg5 {[%emt 0:00:05]} c5 {[%emt 0:00:04]} 7. d5 {[%emt 0:00:07]} e6 {[%emt 0:00:03]} 8. f3 {[%emt 0:00:05]} exd5 {[%emt 0:00:06]} 9. cxd5 {[%emt 0:00:03]} a6 {[%emt 0:00:06]} 10. a4 {[%emt 0:00:03]} Qc7 {[%emt 0:00:04]} 11. Qd2 {[%emt 0:00:56]} Re8 {[%emt 0:06:40]} 12. Bh6 {[%emt 0:03:31]} Nbd7 {[%emt 0:12:32]} 13. Bxg7 {[%emt 0:05:41]} Kxg7 {[%emt 0:00:02]} 14. Nh3 {[%emt 0:01:01]} c4 {[%emt 0:00:37]} 15. Qd4 {[%emt 0:09:26]} Nc5 {[%emt 0:08:40]} 16. Bxc4 {[%emt 0:05:13]} Bxh3 {[%emt 0:01:45]} 17. gxh3 {[%emt 0:00:59]} Qb6 {[%emt 0:12:29]} 18. O-O {[%emt 0:10:24]} Nxa4 {[%emt 0:00:24]} 19. Qxb6 {[%emt 0:01:33]} Nxb6 {[%emt 0:00:02]} 20. Bd3 {[%emt 0:02:39]} Rac8 {[%emt 0:01:13]} 21. Ra3 {[%emt 0:04:42]} Nbd7 {[%emt 0:03:27]} 22. Kf2 {[%emt 0:07:30]} Ne5 {[%emt 0:06:07]} 23. Ke3 {[%emt 0:05:09]} Nfd7 {[%emt 0:00:57]} 24. Be2 {[%emt 0:08:49]} Rc7 {[%emt 0:06:36]} 25. Kd4 {[%emt 0:09:53]} Rec8 {[%emt 0:02:40]} 26. Rf2 {[%emt 0:05:25]} Nb6 {[%emt 0:06:37]} 27. Rb3 {[%emt 0:01:26]} Nbc4 {[%emt 0:00:49]} 28. f4 {[%emt 0:01:56]} Nd7 {[%emt 0:00:15]} 29. Bg4 {[%emt 0:01:34]} f6 {[%emt 0:04:08]} 30. Bxd7 {[%emt 0:02:07]} Rxd7 {[%emt 0:00:02]} 31. Rc2 {[%emt 0:00:15]} b5 {[%emt 0:01:31]} 32. Na2 {[%emt 0:05:37]} Re8 {[%emt 0:01:53]} 33. Re2 {[%emt 0:02:39]} Rde7 {[%emt 0:01:01]} 34. Rc3 {[%emt 0:04:19]} f5 {[%emt 0:01:04]} 35. e5 {[%emt 0:00:15]} dxe5+ {[%emt 0:00:22]} 36. fxe5 {[%emt 0:00:07]} Nxe5 {[%emt 0:00:21]} 37. Rec2 {[%emt 0:00:33]} Nc4 {[%emt 0:01:47]} 38. Nb4 {[%emt 0:01:08]} a5 {[%emt 0:04:56]} 39. Nc6 {[%emt 0:01:02]} Rd7 {[%emt 0:00:04]} 40. Kc5 {[%emt 0:00:00]} f4 {[%emt 0:00:00]} 41. Rd3 {[%emt 0:06:04]} Rf8 {[%emt 0:13:28]} 42. Rf2 {[%emt 0:05:28]} Ne3 {[%emt 0:08:46]} 43. Ne5 {[%emt 0:06:53]} Rc8+ {[%emt 0:00:30]} 44. Nc6 {[%emt 0:01:00]} Rf8 {[%emt 0:04:09]} 45. Ne5 {[%emt 0:00:42]} Rc7+ {[%emt 0:08:28]} 46. Kxb5 {[%emt 0:04:26]} Rb8+ {[%emt 0:01:04]} 47. Ka6 {[%emt 0:05:06]} Nc2 {[%emt 0:04:07]} 48. Rxf4 {[%emt 0:00:54]} Nb4+ {[%emt 0:01:47]} 49. Rxb4 {[%emt 0:00:08]} Rxb4 {[%emt 0:01:28]} 50. Nc6 {[%emt 0:06:21]} Rxb2 {[%emt 0:00:24]} 51. Nd4 {[%emt 0:01:25]} Rd7 {[%emt 0:00:32]} 52. Nb5 {[%emt 0:00:29]} a4 {[%emt 0:01:00]} 53. d6 {[%emt 0:00:25]} Kf6 {[%emt 0:00:17]} 54. Ka5 {[%emt 0:00:36]} Ke6 {[%emt 0:01:37]} 55. Kxa4 {[%emt 0:00:27]} Rb7 {[%emt 0:00:34]} 56. Re3+ {[%emt 0:00:31]} Kd5 {[%emt 0:00:40]} 57. Rd3+ {[%emt 0:00:33]} Kc6 {[%emt 0:00:10]} 58. Rc3+ {[%emt 0:00:29]} Kd7 {[%emt 0:00:14]} 59. Rc5 {[%emt 0:00:28]} Rxh2 {[%emt 0:00:17]} 60. Re5 {[%emt 0:00:31]} Kc6 {[%emt 0:00:52]} 61. Rg5 {[%emt 0:00:32]} Ra2+ {[%emt 0:00:37]} 62. Kb3 {[%emt 0:00:29]} Ra5 {[%emt 0:00:08]} 0-1

[Event "FIDE WYCC Open U14 2023"]
[Site "Montesilvano"]
[Date "2023.11.22"]
[Round "9.30"]
[White "Boci, Mateo"]
[Black "Vingris, Mikelis"]
[Result "0-1"]
[ECO "B50"]
[WhiteElo "1832"]
[BlackElo "2127"]
[Annotator "RC"]
[PlyCount "114"]
[EventDate "2023.11.13"]
[EventType "swiss"]
[EventCountry "ITA"]
[SourceTitle "playchess.com"]
[Source "ChessBase"]
[SourceQuality "1"]
[TimeControl "40/5400+30:1800+30"]

1. e4 {[%emt 0:00:04]} c5 {[%emt 0:03:53]} 2. Nf3 {[%emt 0:00:11]} d6 {[%emt 0:00:02]} 3. Bc4 {[%emt 0:00:13]} Nf6 {[%emt 0:01:47]} 4. d3 {[%emt 0:00:42]} e6 {[%emt 0:03:01]} 5. O-O {[%emt 0:00:49]} Be7 {[%emt 0:00:20]} 6. c3 {[%emt 0:00:13]} O-O {[%emt 0:00:32]} 7. Bb3 {[%emt 0:00:51]} b5 {[%emt 0:02:57]} 8. a3 {[%emt 0:04:24]} Bb7 {[%emt 0:01:42]} 9. Re1 {[%emt 0:01:02]} Nbd7 {[%emt 0:03:24]} 10. h3 {[%emt 0:02:07]} Rc8 {[%emt 0:10:05]} 11. Nbd2 {[%emt 0:00:54]} Qc7 {[%emt 0:03:51]} 12. Bc2 {[%emt 0:01:14]} Rfd8 {[%emt 0:01:11]} 13. Nf1 {[%emt 0:01:08]} Ne5 {[%emt 0:07:37]} 14. Ng3 {[%emt 0:02:49]} Nfd7 {[%emt 0:04:24]} 15. Be3 {[%emt 0:09:01]} Nxf3+ {[%emt 0:07:20]} 16. Qxf3 {[%emt 0:00:25]} d5 {[%emt 0:03:57]} 17. Rad1 {[%emt 0:09:15]} Bd6 {[%emt 0:08:15]} 18. Nf1 {[%emt 0:11:22]} a6 {[%emt 0:11:25]} 19. Qe2 {[%emt 0:02:21]} h6 {[%emt 0:01:59]} 20. Bb1 {[%emt 0:01:53]} Nf6 {[%emt 0:06:06]} 21. Bc1 {[%emt 0:06:20]} dxe4 {[%emt 0:01:32]} 22. dxe4 {[%emt 0:01:47]} Be5 {[%emt 0:02:02]} 23. g3 {[%emt 0:02:31]} Rxd1 {[%emt 0:01:22]} 24. Rxd1 {[%emt 0:00:18]} Qc6 {[%emt 0:00:23]} 25. f3 {[%emt 0:04:48]} a5 {[%emt 0:06:41]} 26. Be3 {[%emt 0:02:04]} Bc7 {[%emt 0:03:22]} 27. Qf2 {[%emt 0:03:16]} Nd7 {[%emt 0:01:08]} 28. Bc2 {[%emt 0:02:25]} Bb8 {[%emt 0:01:41]} 29. c4 {[%emt 0:01:45]} bxc4 {[%emt 0:01:01]} 30. Kg2 {[%emt 0:01:17]} Be5 {[%emt 0:01:08]} 31. Qd2 {[%emt 0:00:37]} Nf8 {[%emt 0:00:10]} 32. Qxa5 {[%emt 0:02:04]} Bxb2 {[%emt 0:00:56]} 33. Nd2 {[%emt 0:00:01]} Ra8 {[%emt 0:00:54]} 34. Qxc5 {[%emt 0:00:04]} Qxc5 {[%emt 0:00:16]} 35. Bxc5 {[%emt 0:00:02]} Bxa3 {[%emt 0:00:27]} 36. Bxa3 {[%emt 0:00:30]} Rxa3 {[%emt 0:00:01]} 37. Nxc4 {[%emt 0:00:26]} Ra2 {[%emt 0:00:44]} 38. Ne3 {[%emt 0:00:46]} Ra3 {[%emt 0:00:42]} 39. Kf2 {[%emt 0:00:16]} Ra8 {[%emt 0:00:51]} 40. g4 {[%emt 0:00:00]} g5 {[%emt 0:00:00]} 41. Kg3 {[%emt 0:02:19]} Ng6 {[%emt 0:08:28]} 42. Rd7 {[%emt 0:02:57]} Ra3 {[%emt 0:02:49]} 43. Rd3 {[%emt 0:01:38]} Ra1 {[%emt 0:02:26]} 44. Rd1 {[%emt 0:01:37]} Ra2 {[%emt 0:08:27]} 45. Rd8+ {[%emt 0:00:52]} Kg7 {[%emt 0:01:36]} 46. Rd7 {[%emt 0:00:11]} Ba6 {[%emt 0:01:37]} 47. Ra7 {[%emt 0:01:40]} Nf4 {[%emt 0:02:24]} 48. h4 {[%emt 0:03:37]} Ne2+ {[%emt 0:00:55]} 49. Kf2 {[%emt 0:00:49]} Nd4 {[%emt 0:00:48]} 50. Kg3 {[%emt 0:00:56]} gxh4+ {[%emt 0:00:31]} 51. Kxh4 {[%emt 0:00:05]} Nxf3+ {[%emt 0:00:42]} 52. Kg3 {[%emt 0:00:03]} Ng5 {[%emt 0:00:47]} 53. e5 {[%emt 0:02:08]} Ra3 {[%emt 0:01:04]} 54. Kh2 {[%emt 0:02:40]} Rxe3 {[%emt 0:00:25]} 55. Rxa6 {[%emt 0:00:08]} Re2+ {[%emt 0:00:06]} 56. Kg3 {[%emt 0:00:06]} Rxc2 {[%emt 0:00:05]} 57. Ra7 {[%emt 0:00:03]} Rc3+ {[%emt 0:00:15]} 0-1

[Event "FIDE WYCC Open U14 2023"]
[Site "Montesilvano"]
[Date "2023.11.22"]
[Round "9.31"]
[White "Tao, Sihan"]
[Black "Escudero Ribo, Eloi"]
[Result "1-0"]
[ECO "B41"]
[WhiteElo "2122"]
[BlackElo "1929"]
[Annotator "NA RC"]
[PlyCount "71"]
[EventDate "2023.11.13"]
[EventType "swiss"]
[EventCountry "ITA"]
[SourceTitle "playchess.com"]
[Source "ChessBase"]
[SourceQuality "1"]
[TimeControl "40/5400+30:1800+30"]

1. e4 {[%emt 0:00:03]} c5 {[%emt 0:00:15]} 2. Nf3 {[%emt 0:00:06]} e6 {[%emt 0:00:08]} 3. d4 {[%emt 0:00:07]} cxd4 {[%emt 0:00:53]} 4. Nxd4 {[%emt 0:00:07]} a6 {[%emt 0:00:14]} 5. c4 {[%emt 0:00:10]} Nf6 {[%emt 0:00:09]} 6. Nc3 {[%emt 0:00:06]} Bb4 {[%emt 0:00:10]} 7. Qd3 {[%emt 0:00:07]} Qc7 {[%emt 0:00:34]} 8. a3 {[%emt 0:20:40]} Bxc3+ {[%emt 0:05:05]} 9. Qxc3 {[%emt 0:00:17]} Nxe4 {[%emt 0:07:11]} 10. Nb5 {[%emt 0:00:52]} axb5 {[%emt 0:20:21]} 11. Qxg7 {[%emt 0:00:04]} Rf8 {[%emt 0:00:44]} 12. Bh6 {[%emt 0:00:06]} Qc5 {[%emt 0:02:58]} 13. f3 {[%emt 0:00:07]} Nf2 {[%emt 0:05:02]} 14. b4 {[%emt 0:03:50]} Qe7 {[%emt 0:12:29]} 15. Kxf2 {[%emt 0:00:16]} Nc6 {[%emt 0:01:59]} 16. Be2 {[%emt 0:03:50]} bxc4 {[%emt 0:01:38]} 17. Qxf8+ {[%emt 0:04:11]} Qxf8 {[%emt 0:00:11]} 18. Bxf8 {[%emt 0:00:04]} Kxf8 {[%emt 0:00:21]} 19. Bxc4 {[%emt 0:00:05]} d5 {[%emt 0:02:05]} 20. Bd3 {[%emt 0:00:49]} h6 {[%emt 0:00:52]} 21. Rhc1 {[%emt 0:05:24]} Ke7 {[%emt 0:02:45]} 22. f4 {[%emt 0:11:04]} Kd6 {[%emt 0:06:22]} 23. Ke3 {[%emt 0:04:50]} f6 {[%emt 0:05:29]} 24. Rf1 {[%emt 0:04:46]} Bd7 {[%emt 0:01:35]} 25. Bb5 {[%emt 0:10:19]} Nxb4 {[%emt 0:10:48]} 26. axb4 {[%emt 0:00:08]} Rxa1 {[%emt 0:00:08]} 27. Rxa1 {[%emt 0:00:03]} Bxb5 {[%emt 0:00:07]} 28. Ra7 {[%emt 0:00:07]} Bc6 {[%emt 0:01:49]} 29. b5 {[%emt 0:00:09]} Bxb5 {[%emt 0:00:04]} 30. Rxb7 {[%emt 0:00:04]} Bf1 {[%emt 0:02:25]} 31. Kf2 {[%emt 0:01:14]} Bd3 {[%emt 0:00:20]} 32. Rf7 {[%emt 0:00:16]} Bf5 {[%emt 0:03:34]} 33. Rxf6 {[%emt 0:00:48]} h5 {[%emt 0:01:41]} 34. Rh6 {[%emt 0:00:09]} h4 {[%emt 0:00:56]} 35. Rxh4 {[%emt 0:00:07]} d4 {[%emt 0:00:13]} 36. Rh5 {[%emt 0:00:43]} 1-0